Cogmind - Beta 11 @@@ ROGUE MODE // 2022.03.27 @ 09:11:00 Player: erp.lsf Result: Destroyed by as-11406 with Assembled F-torch Performance ------------- Evolutions (0) 0 Regions Visited (4) 800 Robots Destroyed (11) 55 Value Destroyed (320) 320 Prototype IDs (0) 0 Alien Tech Used (0) 0 Bonus (0) 0 TOTAL SCORE: 1175 Bonus ------- None Cogmind --------- Core Integrity 0/250 Matter 277/300 Energy 275/275 System Corruption 0% Temperature Cool (20) Movement Walking (120) Location -9/Mines Parts ------- > --- POWER (1) -------- Deuterium Engine > --- PROPULSION (2) --- Aluminum Leg Aluminum Leg > --- UTILITY (2) ------ Small Storage Unit Advanced Visual Processing Unit > --- WEAPON (2) ------- High-powered Shotgun Makeshift Sword > --- INVENTORY (8) ---- Ion Engine Aluminum Leg Aluminum Leg Experimental Sensor Array Signal Interpreter Assault Rifle Mining Laser Peak State ------------ > --- POWER ------------ Deuterium Engine > --- PROPULSION ------- Aluminum Leg Aluminum Leg > --- UTILITY ---------- Small Storage Unit Advanced Visual Processing Unit > --- WEAPON ----------- High-powered Shotgun Makeshift Sword > --- INVENTORY -------- Ion Engine Aluminum Leg Aluminum Leg Experimental Sensor Array Signal Interpreter Assault Rifle Mining Laser [Rating: 17] Favorites ----------- Power Deuterium Engine Engine Deuterium Engine Power Core Light Nuclear Core Propulsion Aluminum Leg Treads Light Treads Leg Aluminum Leg Flight Unit Flight Unit Utility Small Storage Unit Storage Small Storage Unit Processor Advanced Visual Processing Unit Weapon Light Assault Rifle Ballistic Gun Light Assault Rifle Slashing Weapon Makeshift Sword Build | -11 -10 -10 -10 -9 ------- Run | Scr Mat Min Exi Min Slots Evolved . | . . . . . Power . | . . . . . Propulsion . | . . . . . Utility . | . . . . . Weapon . | . . . . . Parts Attached 23 | 8 8 3 2 2 Power 4 | 1 2 1 . . Engine 3 | 1 1 1 . . Core 1 | . 1 . . . Reactor . | . . . . . Propulsion 9 | 3 6 . . . Treads 1 | 1 . . . . Leg 6 | 2 4 . . . Wheel . | . . . . . Hover . | . . . . . Flight 2 | . 2 . . . Utility 4 | 1 . 1 2 . Device . | . . . . . Storage 3 | 1 . . 2 . Processor 1 | . . 1 . . Hackware . | . . . . . Protection . | . . . . . Artifact . | . . . . . Weapon 6 | 3 . 1 . 2 Energy Gun . | . . . . . Energy Cannon . | . . . . . Ballistic Gun 5 | 3 . 1 . 1 Ballistic Cannon . | . . . . . Launcher . | . . . . . Special Weapon . | . . . . . Impact Weapon . | . . . . . Slashing Weapon 1 | . . . . 1 Piercing Weapon . | . . . . . Special Melee Weapon . | . . . . . Unidentified Prototypes . | . . . . . Parts Lost 2 | . 1 . . 1 Power 1 | . 1 . . . Propulsion . | . . . . . Utility . | . . . . . Weapon 1 | . . . . 1 Highest Loss Streak 1 | . 1 . . 1 To Critical Strikes . | . . . . . Average Slot Usage (%) 96 | . 84 98 100 99 Engine 12 | . 7 14 14 14 Core 1 | . 5 . . . Leg 26 | . 22 28 28 28 Flight 1 | . 5 . . . Storage 14 | . 14 14 14 14 Processor 10 | . . 12 14 14 Ballistic Gun 27 | . 28 28 28 26 Naked Turns . | . . . . . Heaviest Build 33 | 12 12 18 33 19 Greatest Support 20 | 20 20 20 20 20 Greatest Overweight (x) 2 | . 2 . 1 . Average Overweight (x) . | . . . . . Largest Inventory Capacity 15 | 8 8 8 15 8 Average Capacity 7 | 6 8 8 8 8 Most Carried 8 | 3 8 8 8 8 Average Carried 7 | 1 5 7 7 7 Final Capacity 8 | 8 8 8 8 8 Final Carried 8 | 3 8 8 8 7 Class Distribution -------------------- 100% | Mutant Dominant Class ---------------- Mutant | -10/Materials Mutant | -10/Mines Mutant | -10/Exiles Mutant | -9/Mines Resources | -11 -10 -10 -10 -9 ----------- Run | Scr Mat Min Exi Min Matter Collected 493 | 163 256 35 . 39 Remotely . | . . . . . Salvage Created 404 | . 379 . . 25 Parts 25 | . 22 . . 3 Haulers Intercepted 1 | . 1 . . . Recyclers Shooed . | . . . . . Parts Field Recycled . | . . . . . Retrieved Matter . | . . . . . Parts Self-Destructed . | . . . . . Prevented . | . . . . . Kills | -11 -10 -10 -10 -9 ------- Run | Scr Mat Min Exi Min Combat Hostiles Destroyed 10 | . 8 . . 2 Guns 10 | . 8 . . 2 Classes Destroyed 3 | . 2 . . 1 Hauler 1 | . 1 . . . Swarmer 2 | . . . . 2 Grunt 8 | . 8 . . . Best Kill Streak 3 | . 3 . . 2 Combat Bots Only 3 | . 3 . . 2 Max Kills in Single Turn 1 | . 1 . . 1 Gunslinging . | . . . . . Exploded . | . . . . . Melee . | . . . . . Uniques/NPCs Destroyed . | . . . . . Combat | -11 -10 -10 -10 -9 -------- Run | Scr Mat Min Exi Min Damage Taken 773 | . 518 26 . 229 Core 253 | . 171 14 . 68 Absorbed by Shields . | . . . . . Core Remaining (%) 100 | 100 . . . . Volleys Fired 39 | . 32 1 . 6 Largest 2 | . 2 2 . 2 Hottest 45 | . 40 45 . 45 Shots Fired 75 | . 64 2 . 9 Gun 75 | . 64 2 . 9 Cannon . | . . . . . Launcher . | . . . . . Special . | . . . . . Kinetic 75 | . 64 2 . 9 Thermal . | . . . . . Explosive . | . . . . . Electromagnetic . | . . . . . Robot Hit Streak 14 | . 14 2 . 5 Robot Miss Streak 9 | . 1 1 . 9 Penetration Max . | . . . . . Secondary Targets . | . . . . . Shots Hit Robots 53 | . 49 1 . 3 Core Hits 25 | . 23 . . 2 Critical Kills . | . . . . . Critical Parts Destroyed . | . . . . . Critical Strikes . | . . . . . Melee Attacks 2 | . . . . 2 Impact . | . . . . . Slashing 2 | . . . . 2 Piercing . | . . . . . Sneak Attacks . | . . . . . Combat Hostiles . | . . . . . Follow-up Attacks . | . . . . . Damage Inflicted 493 | . 409 21 . 63 Guns 493 | . 409 21 . 63 Cannons . | . . . . . Explosions . | . . . . . Melee . | . . . . . Ramming . | . . . . . Kinetic 493 | . 409 21 . 63 Thermal . | . . . . . Explosive . | . . . . . Electromagnetic . | . . . . . Impact . | . . . . . Slashing . | . . . . . Piercing . | . . . . . Highest Corruption . | . . . . . Average Corruption . | . . . . . Corruption Purged . | . . . . . Corruption Blocked . | . . . . . Overload Shots . | . . . . . Overflow Damage . | . . . . . Projectiles . | . . . . . Explosions . | . . . . . Melee . | . . . . . Knockbacks . | . . . . . Impact . | . . . . . Kinetic . | . . . . . Secondary . | . . . . . Self-Inflicted Damage . | . . . . . Shots . | . . . . . Rammed . | . . . . . Targets Rammed . | . . . . . Kicked . | . . . . . Crushed . | . . . . . Highest Temperature 37 | . 37 6 . 27 Average Temperature 14 | . 15 4 . 10 Received Heat Transfer 493 | . 264 9 . 220 Siege Activations . | . . . . . Robots Corrupted . | . . . . . Combat Hostiles . | . . . . . Parts Fried . | . . . . . Impact Corruptions . | . . . . . Robots Melted . | . . . . . Combat Hostiles . | . . . . . Parts Melted . | . . . . . Heat Transferred . | . . . . . Parts Sabotaged . | . . . . . Parts Stolen . | . . . . . Parts Stripped . | . . . . . Power Chain Reactions . | . . . . . Missiles Intercepted . | . . . . . Alert | -11 -10 -10 -10 -9 ------- Run | Scr Mat Min Exi Min Peak Influence 222 | . 222 48 . 50 Initial 33 | . . 33 . . Average 35 | . 79 21 . 2 Maximum Alert Level 1 | . 1 . . . Low Security (%) 99 | 100 97 100 . 100 Level 1 . | . 2 . . . Level 2 . | . . . . . Level 3 . | . . . . . Level 4 . | . . . . . Level 5 . | . . . . . High Security . | . . . . . Max Security . | . . . . . Squads Dispatched 3 | . 2 1 . . Investigation 3 | . 2 1 . . Extermination . | . . . . . Reinforcement . | . . . . . Assault . | . . . . . Garrison . | . . . . . Intercept . | . . . . . Searches Triggered . | . . . . . Construction Impeded . | . . . . . Haulers Reinforced . | . . . . . Active Scanning Responses . | . . . . . Cargo Convoy Interrupts . | . . . . . Stealth | -11 -10 -10 -10 -9 --------- Run | Scr Mat Min Exi Min Distress Signals 2 | . 2 . . . Communications Jammed . | . . . . . Distress Signals . | . . . . . Times Spotted 40 | . 23 1 . 16 Peak Tracking Total 14 | . 5 1 . 14 Tactical Retreats 2 | . 1 . . 1 Traps | -11 -10 -10 -10 -9 ------- Run | Scr Mat Min Exi Min Traps Triggered 2 | . 2 . . . Indirectly . | . . . . . Trap Hack Attempts . | . . . . . Triggered . | . . . . . Disarmed . | . . . . . Reprogrammed . | . . . . . Reused . | . . . . . Traps Extracted . | . . . . . Installed . | . . . . . Triggered . | . . . . . Machines | -11 -10 -10 -10 -9 ---------- Run | Scr Mat Min Exi Min Machines Disabled . | . . . . . Max in Single Turn . | . . . . . Machines Sabotaged . | . . . . . Garrisons Compromised . | . . . . . Overloaded Fab Kills . | . . . . . Hacking | -11 -10 -10 -10 -9 --------- Run | Scr Mat Min Exi Min Machines Accessed 7 | . 2 1 4 . Terminals 2 | . 2 . . . Fabricators . | . . . . . Repair Stations . | . . . . . Recycling Units . | . . . . . Scanalyzers . | . . . . . Garrison Access . | . . . . . Total Hacks 9 | . 4 1 4 . Successful 7 | . 2 1 4 . Failed 2 | . 2 . . . Catastrophic 1 | . 1 . . . Database Lockouts . | . . . . . Manual 6 | . 4 . 2 . Terminals 4 | . 4 . . . Fabricators . | . . . . . Repair Stations . | . . . . . Recycling Units . | . . . . . Scanalyzers . | . . . . . Garrison Access . | . . . . . Terminal Hacks 5 | . . 1 4 . Record 4 | . . . 4 . Open Door 1 | . . 1 . . Fabricator Hacks . | . . . . . Repair Station Hacks . | . . . . . Recycling Unit Hacks . | . . . . . Scanalyzer . | . . . . . Garrison Access Hacks . | . . . . . Unauthorized Hacks 2 | . 2 . . . Terminals 2 | . 2 . . . Botnet 2 | . 2 . . . Fabricators . | . . . . . Repair Stations . | . . . . . Recycling Units . | . . . . . Scanalyzers . | . . . . . Garrison Access . | . . . . . Data Cores Recovered . | . . . . . Used . | . . . . . Hacking Detections 1 | . 1 . . . Full Trace Events . | . . . . . Feedback Events . | . . . . . Feedback Blocked . | . . . . . Robot Schematics Acquired . | . . . . . Robots Built . | . . . . . Authchips . | . . . . . Time . | . . . . . Total Robot Build Rating . | . . . . . Part Schematics Acquired . | . . . . . Parts Built . | . . . . . Authchips . | . . . . . Time . | . . . . . Total Part Build Rating . | . . . . . Parts Repaired . | . . . . . Time . | . . . . . Parts Recycled . | . . . . . Recycled Matter . | . . . . . Retrieved Matter . | . . . . . Retrieved Components . | . . . . . Parts Scanalyzed . | . . . . . Part Schematics Acquired . | . . . . . Parts Damaged . | . . . . . Bothacking | -11 -10 -10 -10 -9 ------------ Run | Scr Mat Min Exi Min Used RIF Installer . | . . . . . Robots Hacked . | . . . . . Non-combat . | . . . . . Combat . | . . . . . Robot Hacks Applied . | . . . . . Relay Couplers Released . | . . . . . Fabnet Peak Effective % . | . . . . . Robots Rewired . | . . . . . Allies Hacked . | . . . . . Hacks Repelled . | . . . . . Allies | -11 -10 -10 -10 -9 -------- Run | Scr Mat Min Exi Min Total Allies . | . . . . . Largest Group . | . . . . . Highest-Rated Group . | . . . . . Highest-Rated Ally . | . . . . . Total Orders . | . . . . . Ally Attacks . | . . . . . Total Damage . | . . . . . Kills . | . . . . . Allies Corrupted . | . . . . . Allies Melted . | . . . . . Intel | -11 -10 -10 -10 -9 ------- Run | Scr Mat Min Exi Min Robot Analysis Total . | . . . . . Derelict Logs Recovered 3 | . . 2 . 1 Drone Launches . | . . . . . Drone Recoveries . | . . . . . Exploration | -11 -10 -10 -10 -9 ------------- Run | Scr Mat Min Exi Min Turns Passed 2514 | 64 555 756 805 334 Spaces Moved 1883 | 42 306 617 663 255 Core 2 | 2 . . . . Treads 3 | 3 . . . . Legs 1831 | 37 259 617 663 255 Wheels . | . . . . . Hover . | . . . . . Flight 47 | . 47 . . . Fastest Speed 50 | 50 117 120 120 120 Average Speed 120 | 119 123 120 120 120 Slowest Speed 200 | 160 200 120 190 120 Overloaded Moves . | . . . . . Propulsion Burnouts . | . . . . . Robots Hopped . | . . . . . Cave-ins Triggered . | . . . . . Exploration Rate (%) 60 | 3 53 93 95 56 Regions Visited 4 Branch Regions 3 Pre-discovered Areas . | . . . . . Known Exits Taken . | . . . . . Unknown Exits Taken 4 | 1 1 1 1 . Scrap Searched 4 | . . 2 . 2 Spaces Dug . | . . . . . Terrain Destroyed . | . . . . . Melee . | . . . . . Projectile . | . . . . . AOE . | . . . . . Terrain Rammed . | . . . . . Walls Destroyed . | . . . . . Machines Disabled . | . . . . . Actions | -11 -10 -10 -10 -9 --------- Run | Scr Mat Min Exi Min Total 2062 | 53 436 632 669 272 Wait 85 | 1 71 6 . 7 Move 1879 | 41 305 616 662 255 Hop . | . . . . . Pick Up 13 | 1 7 2 3 . Fast Attach 16 | 8 6 1 1 . Attach 1 | . . . . 1 Detach 6 | 2 4 . . . Swap 6 | . 2 2 1 1 Drop 15 | . 9 4 2 . Fire 39 | . 32 1 . 6 Melee 2 | . . . . 2 Ram . | . . . . . Kick . | . . . . . Crush . | . . . . . Escape Stasis . | . . . . . Rewire . | . . . . . Trap . | . . . . . Miscellaneous . | . . . . . Route ------- -11/Scrapyard -10/Materials (discovered 2 exits: [*Mat] / *Min) -10/Mines (discovered 3 exits: [*Mat x2] / *Exi) -10/Exiles (discovered 2 exits: [*Min x2]) -9/Mines (discovered 1 exit: [*Mat]) History --------- Turn | Location | Event 6 | -11/Scrapyard | Discovered new exit (range 15) 65 | -11/Scrapyard | Entered Materials 313 | -10/Materials | Discovered new exit (range 15) 316 | -10/Materials | Build established: Mutant 453 | -10/Materials | Core integrity fell below 50% 520 | -10/Materials | Discovered new exit (range 13) 620 | -10/Materials | Entered Mines 625 | -10/Mines | Deemed a non-threat by the Exiles lab entrance 626 | -10/Mines | Discovered new exit (range 5) 669 | -10/Mines | Met a Derelict shopkeep closing up shop 792 | -10/Mines | A weapon hastily lodged in a ceiling crevice suddenly fell to the ground 827 | -10/Mines | Joined a pair of Derelicts in attacking an 0b10 outpost 947 | -10/Mines | Discovered new exit (range 11) 1093 | -10/Mines | Found a damaged Exp. Sensor Array with a note attached 1096 | -10/Mines | Found Prototype Device 1121 | -10/Mines | Learned Materials emergency access door positions 1255 | -10/Mines | Discovered new exit (range 13) 1376 | -10/Mines | Entered Exiles 1376 | -10/Exiles | Found Exiles lab abandoned 1395 | -10/Exiles | Discovered new exit (range 15) 1623 | -10/Exiles | Discovered new exit (range 14) 2181 | -10/Exiles | Entered Mines 2209 | -9/Mines | Learned Materials terminal intel 2329 | -9/Mines | Discovered new exit (range 11) 2430 | -9/Mines | Assembled infested the area 2461 | -9/Mines | Core integrity fell below 20% 2515 | -9/Mines | Destroyed by as-11406 with Assembled F-torch Last Messages --------------- 02185_ Found Huge Storage Unit. 02185_ Found 12 Matter. 02186_ Acquired 12 matter. 02209_ Acquired derelict log, extracted data. Data stored: Materials terminal intel. 02295_ K-01 Serf collects debris. 02329_ EXIT=FOUND 02333_ K-01 Serf collects debris. 02343_ K-01 Serf cleans the Core Extractor. 02386_ K-01 Serf collects debris. 02430_ ALERT: Infestation in the mines, dispatching Demolisher response squad. 02487_ Lgt. Assault Rifle destroyed. 02492_ S-10 Pest destroyed. 02502_ Acquired 11 matter. 02514_ Searching scrap... 02514_ Found Imp. Aluminum Leg. 02514_ Found Salvage Targeting Computer. 02514_ Found 16 Matter. 02515_ Acquired 16 matter. Map ----- +----------------------------------------------------+ | ### #???????# #???????????????? | | ##?# ##???????# #???????????????? | | ##??# ###????????# #???????????????? | | #???# ##??????????# #???????????????? | | ????#########???????????# #???????????????? | | ????????????????????????# #???????????????? | | ????????????????????????# #???????????????? | | ????????????????????????# #???????????????? | | ????????????????????????# #???????????????? | | ????????????????????????# #???????????????? | | ???????????????????????# #???????????????? | | ???????????????????????# #???????????????? | | ##??????????????????????# ###?????????????? | | #???????????????????????#=%[#?????????????? | | ????????????????????????###*#?????????????? | | ??????????????????????????# ####??????????? | | ?????????????????????????##=% ##?????????? | | ????????????????????????## =* ###???????? | | ??????????????????????### #???? | | ?????????????????????## ## ###### #???? | | ?????????????????????# a##?###??????????? | | ?????????????????????# #???????????????? | | ?????????????????????## #???????????????? | | ??????????????????????### #???????????????? | | ????????????????????????#=#???????????????? | | ????????????????????????#@#???????????????? | | ????????????????????????#!#???????????????? | | ????????????????????????# #???????????????? | | ????????????????????????#u#???????????????? | | ????????????????????????#t#???????????????? | | ????????????????????????# #???????????????? | | ????????????????????????# #???????????????? | | ????????????????????????# #???????????????? | | ????????????????????????# #???????????????? | | ???????????????????????? ???????????????? | | ???????????????????????? ???????????????? | | ???????????????????????? ???????????????? | | ???????????????????????? ???????????????? | | ???????????????????????? ???????????????? | | ???????????????????????? ???????????????? | | ????????????????????????###???????????????? | | ??????????????????????????????????????????? | | ??????????????????????????????????????????? | | | | | | | | | | | | | | | +----------------------------------------------------+ Best States ------------- Heat Dissipation 25 Energy Generation 14 Energy Capacity 275 Matter Stores 300 Matter Capacity 300 Sight Range 20 Terrain Scan Density 10 Evasion (%) 55 Item Schematics ----------------- None Robot Schematics ------------------ None Fabricated ------------ Nothing Alien Tech Used ----------------- None Achievements -------------- None Challenges ------------ None Game ------ Seed DecoderTiamatRecalibrator Manual? 0 Play Time 00:19:35 Cumulative 39.2 hours Start 2022.03.27 @ 08:53:33 End 2022.03.27 @ 09:11:00 Sessions 1 Manual Loads 0 Difficulty Rogue Special Mode None Game No. 52 Rogue 52 Adventurer 0 Explorer 0 Win Type - Total 0 Types 0/0/0/0/0/0/0/0/0 Lore% 24 Gallery% 34 Achievement% 33 Wizard Run 0 Options --------- ASCII 0 Keyboard 1 Movement Numpad Keybinds 0 Fullscreen 1 Font 24/Smallcaps Map View 76x50 Tactical HUD 1 Map Filters NONE Filters NONE Steam 1 RUN: 25dbf510-cb70-49ce-aa8e-1db9e44199e4